fUST/lending_fUST_20250819
["ID","MTS","AMOUNT","RATE_DAILY","PERIOD"]
[380213091,1755612653287,-661.42,0.00019726,2]
[380213092,1755612653296,-480.0,0.00019726,2]
[380213093,1755612653305,-538.00559162,0.00019726,2]
[380213094,1755612653315,-1251.75,0.00019726,2]
[380213095,1755612653325,-1066.53,0.00019726,2]
[380213096,1755612653335,-480.0,0.00019726,2]
[380213097,1755612653344,-480.0,0.00019726,2]
[380213098,1755612653353,-480.0,0.00019726,2]
[380213099,1755612653362,-844.3,0.00019726,2]
[380213100,1755612653372,-480.0,0.00019726,2]
[380213101,1755612653381,-480.0,0.00019726,2]
[380213102,1755612653390,-151.0,0.00019726,2]
[380213103,1755612653400,-895.2,0.00019726,2]
[380213104,1755612653409,-583.64674142,0.00019726,2]
[380213105,1755612653418,-675.52,0.00019726,2]
[380213106,1755612653427,-480.0,0.00019726,2]
[380213107,1755612653439,-2975.23,0.00019726,2]
[380213108,1755612653448,-1092.72,0.00019726,2]
[380213109,1755612653458,-480.0,0.00019726,2]
[380213110,1755612653468,-2412.27,0.00019726,2]
[380213111,1755612653477,-4861.85,0.00019726,2]
[380213112,1755612653487,-480.0,0.00019726,2]
[380213113,1755612653496,-480.0,0.00019726,2]
[380213114,1755612653505,-480.0,0.00019726,2]
[380213115,1755612653515,-480.0,0.00019726,2]
[380213116,1755612653524,-480.0,0.00019726,2]
[380213117,1755612653533,-480.0,0.00019726,2]
[380213118,1755612653544,-480.0,0.00019726,2]
[380213119,1755612653553,-1698.38,0.00019726,2]
[380213120,1755612653563,-480.0,0.00019726,2]
[380213121,1755612653573,-480.0,0.00019726,2]
[380213122,1755612653584,-480.0,0.00019726,2]
[380213123,1755612653593,-480.0,0.00019726,2]
[380213124,1755612653603,-480.0,0.00019726,2]
[380213125,1755612653613,-2825.91,0.00019726,2]
[380213126,1755612653623,-165.32743784,0.00019726,2]
[380213127,1755612653632,-480.0,0.00019726,2]
[380213128,1755612653642,-480.0,0.00019726,2]
[380213129,1755612653651,-561.25,0.00019726,2]
[380213130,1755612653660,-269.19531519,0.00019726,2]
[380213131,1755612653669,-1179.89,0.00019726,2]
[380213132,1755612653679,-480.0,0.00019726,2]
[380213133,1755612653689,-3215.91,0.00019726,2]
[380213134,1755612653698,-151.0,0.00019726,2]
[380213135,1755612653709,-480.0,0.00019726,2]
[380213136,1755612653718,-151.0,0.00019726,2]
[380213137,1755612653727,-480.0,0.00019726,2]
[380213138,1755612653736,-480.0,0.00019726,2]
[380213139,1755612653746,-151.0,0.00019726,2]
[380213140,1755612653755,-480.0,0.00019726,2]
[380213141,1755612653765,-1056.77,0.00019726,2]
[380213142,1755612653774,-460.0,0.00019726,2]
[380213143,1755612653783,-1620.11,0.00019726,2]
[380213144,1755612653793,-548.98,0.00019726,2]
[380213145,1755612653802,-809.52,0.00019726,2]
[380213146,1755612653811,-480.0,0.00019726,2]
[380213147,1755612653820,-480.0,0.00019726,2]
[380213148,1755612653830,-480.0,0.00019726,2]
[380213149,1755612653839,-480.0,0.00019726,2]
[380213150,1755612653849,-480.0,0.00019726,2]
[380213151,1755612653858,-480.0,0.00019726,2]
[380213152,1755612653868,-480.0,0.00019726,2]
[380213153,1755612653877,-480.0,0.00019726,2]
[380213154,1755612653887,-440.78812035,0.00019726,2]
[380213155,1755612653896,-480.0,0.00019726,2]
[380213156,1755612653905,-955.73,0.00019726,2]
[380213157,1755612653915,-480.0,0.00019726,2]
[380213158,1755612653924,-2113.53,0.00019726,2]
[380213159,1755612653933,-480.0,0.00019726,2]
[380213160,1755612653942,-480.0,0.00019726,2]
[380213161,1755612653951,-480.0,0.00019726,2]
[380213162,1755612653963,-839.59,0.00019726,2]
[380213163,1755612653975,-600.83,0.00019726,2]
[380213164,1755612653985,-1223.05,0.00019726,2]
[380213165,1755612653994,-480.0,0.00019726,2]
[380213166,1755612654003,-2083.8,0.00019726,2]
[380213167,1755612654012,-480.0,0.00019726,2]
[380213168,1755612654021,-480.0,0.00019726,2]
[380213169,1755612654031,-480.0,0.00019726,2]
[380213170,1755612654040,-151.0,0.00019726,2]
[380213171,1755612654056,-480.0,0.00019726,2]
[380213172,1755612654066,-655.19,0.00019726,2]
[380213173,1755612654075,-480.0,0.00019726,2]
[380213174,1755612654084,-480.0,0.00019726,2]
[380213175,1755612654095,-480.0,0.00019726,2]
[380213176,1755612654104,-480.0,0.00019726,2]
[380213177,1755612654113,-702.29,0.00019726,2]
[380213178,1755612654123,-260.0,0.00019726,2]
[380213179,1755612654132,-586.76,0.00019726,2]
[380213180,1755612654141,-948.85,0.00019726,2]
[380213181,1755612654150,-480.0,0.00019726,2]
[380213182,1755612654159,-812.04,0.00019726,2]
[380213183,1755612654168,-480.0,0.00019726,2]
[380213184,1755612654178,-480.0,0.00019726,2]
[380213185,1755612654187,-480.0,0.00019726,2]
[380213186,1755612654196,-904.03,0.00019726,2]
[380213187,1755612654207,-9635.08,0.00019726,2]
[380213188,1755612654216,-480.0,0.00019726,2]
[380213189,1755612654225,-480.0,0.00019726,2]
[380213190,1755612654235,-2062.67,0.00019726,2]
[380213191,1755612654244,-3655.21,0.00019726,2]
[380213192,1755612654254,-480.0,0.00019726,2]
[380213193,1755612654263,-480.0,0.00019726,2]
[380213194,1755612654273,-151.0,0.00019726,2]
[380213195,1755612654283,-851.83,0.00019726,2]
[380213196,1755612654293,-341.51581681,0.00019726,2]
[380213197,1755612654302,-480.0,0.00019726,2]
[380213198,1755612654312,-978.76,0.00019726,2]
[380213199,1755612654321,-480.0,0.00019726,2]
[380213200,1755612654330,-480.0,0.00019726,2]
[380213201,1755612654340,-480.0,0.00019726,2]
[380213202,1755612654350,-984.65,0.00019726,2]
[380213203,1755612654360,-480.0,0.00019726,2]
[380213204,1755612654370,-480.0,0.00019726,2]
[380213205,1755612654380,-480.0,0.00019726,2]
[380213206,1755612654389,-480.0,0.00019726,2]
[380213207,1755612654399,-500.0,0.00019726,2]
[380213208,1755612654408,-306.0,0.00019753,2]
[380213209,1755612654417,-587.7886402,0.00019753,2]
[380213210,1755612654426,-501.6669573,0.00019773,2]
[380213211,1755612654436,-500.0,0.00019773,2]
[380213212,1755612654445,-500.0,0.00019773,2]
[380213213,1755612654455,-500.0,0.00019773,2]
[380213214,1755612654584,-151.0,0.00019773,2]
[380213215,1755612654596,-151.0,0.000198,2]
[380213216,1755612654606,-451.159795,0.00019863,2]
[380213217,1755612654615,-151.0,0.00019899,2]
[380213218,1755612654625,-14089.49912574,0.000199,2]
[380213219,1755612654634,-151.0,0.000199,2]
[380213220,1755612654644,-151.0,0.000199,2]
[380213221,1755612654653,-10355.47665466,0.000199,2]
[380213222,1755612654663,-500.0,0.00019973,2]
[380213223,1755612654672,-500.4708925,0.00019973,2]
[380213224,1755612654682,-500.0,0.00019973,2]
[380213225,1755612654692,-500.0,0.00019973,2]
[380213226,1755612654702,-500.0,0.00019973,2]
[380213227,1755612654712,-500.0,0.00019973,2]
[380213228,1755612654721,-8056.1114044,0.0001999,2]
[380213229,1755612654936,-91943.8885956,0.0001999,2]
[380213230,1755612654946,-480.0,0.0002,2]
[380213231,1755612654956,-608.55394552,0.0002,2]
[380213232,1755612654967,-170.03081564,0.0002,2]
[380213233,1755612654978,-480.0,0.0002,2]
[380213234,1755612654988,-480.0,0.0002,2]
[380213235,1755612654997,-480.0,0.0002,2]
[380213236,1755612655006,-500.0,0.0002,2]
[380213237,1755612655016,-480.0,0.0002,2]
[380213238,1755612655026,-480.0,0.0002,2]
[380213239,1755612655035,-480.0,0.0002,2]
[380213240,1755612655044,-480.0,0.0002,2]
[380213241,1755612655056,-700.48,0.0002,2]
[380213242,1755612655066,-480.0,0.0002,2]
[380213243,1755612655076,-480.0,0.0002,2]
[380213244,1755612655085,-480.0,0.0002,2]
[380213245,1755612655095,-689.6,0.0002,2]
[380213246,1755612655104,-480.0,0.0002,2]
[380213247,1755612655114,-480.0,0.0002,2]
[380213248,1755612655124,-480.0,0.0002,2]
[380213249,1755612655133,-480.0,0.0002,2]
[380213250,1755612655143,-9591.59,0.0002,2]
[380213251,1755612655153,-317.42,0.0002,2]
[380213252,1755612655163,-480.0,0.0002,2]
[380213253,1755612655172,-480.0,0.0002,2]
[380213254,1755612655182,-480.0,0.0002,2]
[380213255,1755612655191,-480.0,0.0002,2]
[380213256,1755612655200,-585.01,0.0002,2]
[380213257,1755612655209,-480.0,0.0002,2]
[380213258,1755612655219,-404.525556,0.0002,2]
[380213259,1755612655228,-480.0,0.0002,2]
[380213260,1755612655237,-778.73,0.0002,2]
[380213261,1755612655247,-480.0,0.0002,2]
[380213262,1755612655257,-480.0,0.0002,2]
[380213263,1755612655267,-480.0,0.0002,2]
[380213264,1755612655276,-480.0,0.0002,2]
[380213265,1755612655285,-480.0,0.0002,2]
[380213266,1755612655295,-480.0,0.0002,2]
[380213267,1755612655304,-480.0,0.0002,2]
[380213268,1755612655314,-480.0,0.0002,2]
[380213269,1755612655323,-480.0,0.0002,2]
[380213270,1755612655334,-480.0,0.0002,2]
[380213271,1755612655343,-480.0,0.0002,2]
[380213272,1755612655352,-480.0,0.0002,2]
[380213273,1755612655362,-1296.86,0.0002,2]
[380213274,1755612655372,-480.0,0.0002,2]
[380213275,1755612655381,-480.0,0.0002,2]
[380213276,1755612655391,-460.0,0.0002,2]
[380213277,1755612655406,-523.13,0.0002,2]
[380213278,1755612655424,-480.0,0.0002,2]
[380213279,1755612655443,-480.0,0.0002,2]
[380213280,1755612655453,-416.54355897,0.0002,2]
[380213281,1755612655466,-480.0,0.0002,2]
[380213282,1755612655476,-480.0,0.0002,2]
[380213283,1755612655485,-480.0,0.0002,2]
[380213284,1755612655494,-480.0,0.0002,2]
[380213285,1755612655503,-480.0,0.0002,2]
[380213286,1755612655512,-1414.63,0.0002,2]
[380213287,1755612655521,-480.0,0.0002,2]
[380213288,1755612655529,-550.88,0.0002,2]
[380213289,1755612655538,-480.0,0.0002,2]
[380213290,1755612655548,-480.0,0.0002,2]
[380213291,1755612655556,-480.0,0.0002,2]
[380213292,1755612655565,-599.53817664,0.0002,2]
[380213293,1755612655574,-480.0,0.0002,2]
[380213294,1755612655583,-480.0,0.0002,2]
[380213295,1755612655593,-550.04,0.0002,2]
[380213296,1755612655602,-480.0,0.0002,2]
[380213297,1755612655611,-480.0,0.0002,2]
[380213298,1755612655620,-480.0,0.0002,2]
[380213299,1755612655629,-480.0,0.0002,2]
[380213300,1755612655639,-480.0,0.0002,2]
[380213301,1755612655648,-480.0,0.0002,2]
[380213302,1755612655657,-367.87349595,0.0002,2]
[380213303,1755612655667,-254.65728274,0.0002,2]
[380213304,1755612655676,-6496.46,0.0002,2]
[380213305,1755612655686,-151.0,0.0002,2]
[380213306,1755612655695,-383.58735649,0.0002,2]
[380213307,1755612655705,-2041.41,0.0002,2]
[380213308,1755612655715,-500.0,0.0002,2]
[380213309,1755612655723,-480.0,0.0002,2]
[380213310,1755612655731,-480.0,0.0002,2]
[380213311,1755612655741,-480.0,0.0002,2]
[380213312,1755612655750,-480.0,0.0002,2]
[380213313,1755612655760,-480.0,0.0002,2]
[380213314,1755612655769,-480.0,0.0002,2]
[380213315,1755612655778,-480.0,0.0002,2]
[380213316,1755612655788,-480.0,0.0002,2]
[380213317,1755612655797,-480.0,0.0002,2]
[380213318,1755612655806,-480.0,0.0002,2]
[380213319,1755612655816,-480.0,0.0002,2]
[380213320,1755612655825,-480.0,0.0002,2]
[380213321,1755612655834,-436.0,0.0002,2]
[380213322,1755612655843,-480.0,0.0002,2]
[380213323,1755612655852,-959.21,0.0002,2]
[380213324,1755612655861,-480.0,0.0002,2]
[380213325,1755612655870,-480.0,0.0002,2]
[380213326,1755612655879,-480.0,0.0002,2]
[380213327,1755612655889,-151.0,0.0002,2]
[380213328,1755612655898,-480.0,0.0002,2]
[380213329,1755612655906,-480.0,0.0002,2]
[380213330,1755612655915,-480.0,0.0002,2]
[380213331,1755612655924,-480.0,0.0002,2]
[380213332,1755612655933,-480.0,0.0002,2]
[380213333,1755612655943,-480.0,0.0002,2]
[380213334,1755612655952,-480.0,0.0002,2]
[380213335,1755612655963,-480.0,0.0002,2]
[380213336,1755612655974,-480.0,0.0002,2]
[380213337,1755612655985,-223.66325514,0.0002,2]
[380213338,1755612655995,-480.0,0.0002,2]
[380213339,1755612656004,-480.0,0.0002,2]
[380213340,1755612656014,-151.0,0.0002,2]
[380213341,1755612656025,-480.0,0.0002,2]
[380213342,1755612656034,-480.0,0.0002,2]
[380213343,1755612656043,-480.0,0.0002,2]
[380213344,1755612656058,-480.0,0.0002,2]
[380213345,1755612656068,-480.0,0.0002,2]
[380213346,1755612656078,-480.0,0.0002,2]
[380213347,1755612656088,-1068.44,0.0002,2]
[380213348,1755612656101,-480.0,0.0002,2]
[380213349,1755612656121,-480.0,0.0002,2]
[380213350,1755612656130,-512.78,0.0002,2]
[380213351,1755612656140,-480.0,0.0002,2]
[380213352,1755612656150,-1679.27,0.0002,2]
[380213353,1755612656159,-499.92,0.0002,2]
[380213354,1755612656169,-480.0,0.0002,2]
[380213355,1755612656179,-480.0,0.0002,2]
[380213356,1755612656188,-480.0,0.0002,2]
[380213357,1755612656197,-915.94,0.0002,2]
[380213358,1755612656207,-507.91,0.0002,2]
[380213359,1755612656217,-480.0,0.0002,2]
[380213360,1755612656226,-480.0,0.0002,2]
[380213361,1755612656236,-480.0,0.0002,2]
[380213362,1755612656246,-480.0,0.0002,2]
[380213363,1755612656255,-528.62,0.0002,2]
[380213364,1755612656265,-1168.58,0.0002,2]
[380213365,1755612656275,-480.0,0.0002,2]
[380213366,1755612656284,-480.0,0.0002,2]
[380213367,1755612656293,-480.0,0.0002,2]
[380213368,1755612656303,-480.0,0.0002,2]
[380213369,1755612656312,-480.0,0.0002,2]
[380213370,1755612656322,-480.0,0.0002,2]
[380213371,1755612656331,-1432.17,0.0002,2]
[380213372,1755612656341,-480.0,0.0002,2]
[380213373,1755612656350,-480.0,0.0002,2]
[380213374,1755612656360,-480.0,0.0002,2]
[380213375,1755612656369,-480.0,0.0002,2]
[380213376,1755612656378,-624.52,0.0002,2]
[380213377,1755612656387,-480.0,0.0002,2]
[380213378,1755612656397,-480.0,0.0002,2]
[380213379,1755612656406,-480.0,0.0002,2]
[380213380,1755612656416,-480.0,0.0002,2]
[380213381,1755612656426,-480.0,0.0002,2]
[380213382,1755612656435,-935.16,0.0002,2]
[380213383,1755612656445,-480.0,0.0002,2]
[380213384,1755612656454,-480.0,0.0002,2]
[380213385,1755612656465,-572.18,0.0002,2]
[380213386,1755612656474,-480.0,0.0002,2]
[380213387,1755612656484,-788.94,0.0002,2]
[380213388,1755612656494,-480.0,0.0002,2]
[380213389,1755612656503,-552.52,0.0002,2]
[380213390,1755612656512,-700.16,0.0002,2]
[380213391,1755612656522,-480.0,0.0002,2]
[380213392,1755612656531,-553.42,0.0002,2]
[380213393,1755612656540,-151.0,0.0002,2]
[380213394,1755612656550,-151.0,0.0002,2]
[380213395,1755612656560,-151.0,0.0002,2]
[380213396,1755612656569,-151.0,0.0002,2]
[380213397,1755612656578,-480.0,0.0002,2]
[380213398,1755612656589,-480.0,0.0002,2]
[380213399,1755612656598,-480.0,0.0002,2]
[380213400,1755612656608,-480.0,0.0002,2]
[380213401,1755612656617,-572.32,0.0002,2]
[380213402,1755612656626,-2981.05877791,0.0002,2]
[380213403,1755612656635,-2412.64,0.0002,2]
[380213404,1755612656644,-151.0,0.0002,2]
[380213405,1755612656654,-480.0,0.0002,2]
[380213406,1755612656663,-480.0,0.0002,2]
[380213407,1755612656672,-767.4,0.0002,2]
[380213408,1755612656803,-736.09,0.0002,2]
[380213409,1755612656813,-480.0,0.0002,2]
[380213410,1755612656822,-480.0,0.0002,2]
[380213411,1755612656831,-494.1,0.0002,2]
[380213412,1755612656841,-480.0,0.0002,2]
[380213413,1755612656850,-480.0,0.0002,2]
[380213414,1755612656860,-480.0,0.0002,2]
[380213415,1755612656869,-1013.21,0.0002,2]
[380213416,1755612656879,-1457.45,0.0002,2]
[380213417,1755612656888,-1169.79,0.0002,2]
[380213418,1755612656898,-969.12,0.0002,2]
[380213419,1755612656907,-480.0,0.0002,2]
[380213420,1755612656916,-1821.26,0.0002,2]
[380213421,1755612656925,-526.44,0.0002,2]
[380213422,1755612656934,-151.0,0.0002,2]
[380213423,1755612656943,-480.0,0.0002,2]
[380213424,1755612656953,-480.0,0.0002,2]
[380213425,1755612656962,-480.0,0.0002,2]
[380213426,1755612656973,-292.05517698,0.0002,2]
[380213427,1755612656995,-187.94482302,0.0002,2]
[380213428,1755612657004,-480.0,0.0002,2]
[380213429,1755612657016,-661.42,0.0002,2]
[380213430,1755612657036,-1251.75,0.0002,2]
[380213431,1755612657048,-449.0368926,0.0002,2]
[380213432,1755612657062,-617.4931074,0.0002,2]
[380213433,1755612657073,-480.0,0.0002,2]
[380213434,1755612657082,-336.43093853,0.0002,2]
[380213435,1755612657097,-1148.01990208,0.0002,2]
[380213436,1755612657306,-480.0,0.00019178,2]
[380213437,1755612657316,-131.97915939,0.0002,2]
[380213438,1755612657325,-480.0,0.0002,2]
[380213439,1755612657335,-480.0,0.0002,2]
[380213440,1755612657344,-844.3,0.0002,2]
[380213441,1755612657354,-480.0,0.0002,2]
[380213442,1755612657363,-480.0,0.0002,2]
[380213443,1755612657372,-895.2,0.0002,2]
[380213444,1755612657381,-675.52,0.0002,2]
[380213445,1755612657390,-480.0,0.0002,2]
[380213446,1755612657400,-2975.23,0.0002,2]
[380213447,1755612657410,-1092.72,0.0002,2]
[380213448,1755612657419,-480.0,0.0002,2]
[380213449,1755612657428,-2412.27,0.0002,2]
[380213450,1755612657437,-4861.85,0.0002,2]
[380213451,1755612657446,-480.0,0.0002,2]
[380213452,1755612657455,-480.0,0.0002,2]
[380213453,1755612657465,-480.0,0.0002,2]
[380213454,1755612657474,-581.3892762,0.0002,2]
[380213455,1755612657483,-480.0,0.0002,2]
[380213456,1755612657492,-480.0,0.0002,2]
[380213457,1755612657501,-480.0,0.0002,2]
[380213458,1755612657511,-1698.38,0.0002,2]
[380213459,1755612657520,-480.0,0.0002,2]
[380213460,1755612657529,-480.0,0.0002,2]
[380213461,1755612657538,-480.0,0.0002,2]
[380213462,1755612657548,-238.44839415,0.0002,2]
[380213463,1755612657558,-480.0,0.0002,2]
[380213464,1755612657567,-2825.91,0.0002,2]
[380213465,1755612657576,-480.0,0.0002,2]
[380213466,1755612657585,-480.0,0.0002,2]
[380213467,1755612657595,-561.25,0.0002,2]
[380213468,1755612657604,-1179.89,0.0002,2]
[380213469,1755612657613,-480.0,0.0002,2]
[380213470,1755612657623,-3215.91,0.0002,2]
[380213471,1755612657632,-441.01465735,0.0002,2]
[380213472,1755612657641,-480.0,0.0002,2]
[380213473,1755612657650,-480.0,0.0002,2]
[380213474,1755612657659,-1056.77,0.0002,2]
[380213475,1755612657669,-480.0,0.0002,2]
[380213476,1755612657678,-1620.11,0.0002,2]
[380213477,1755612657687,-548.98,0.0002,2]
[380213478,1755612657697,-809.52,0.0002,2]
[380213479,1755612657706,-480.0,0.0002,2]
[380213480,1755612657716,-420.0,0.0002,2]
[380213481,1755612657725,-480.0,0.0002,2]
[380213482,1755612657734,-460.0,0.0002,2]
[380213483,1755612657743,-480.0,0.0002,2]
[380213484,1755612657753,-480.0,0.0002,2]
[380213485,1755612657763,-480.0,0.0002,2]
[380213486,1755612657772,-955.73,0.0002,2]
[380213487,1755612657782,-485.56053033,0.0002,2]
[380213488,1755612657791,-480.0,0.0002,2]
[380213489,1755612657800,-480.0,0.0002,2]
[380213490,1755612657809,-480.0,0.0002,2]
[380213491,1755612657819,-480.0,0.0002,2]
[380213492,1755612657828,-2113.53,0.0002,2]
[380213493,1755612657837,-839.59,0.0002,2]
[380213494,1755612657846,-600.83,0.0002,2]
[380213495,1755612657855,-1223.05,0.0002,2]
[380213496,1755612657864,-480.0,0.0002,2]
[380213497,1755612657874,-460.0,0.0002,2]
[380213498,1755612657883,-2083.8,0.0002,2]
[380213499,1755612657892,-623.44607977,0.0002,2]
[380213500,1755612657901,-480.0,0.0002,2]
[380213501,1755612657910,-655.19,0.0002,2]
[380213502,1755612657920,-480.0,0.0002,2]
[380213503,1755612657930,-480.0,0.0002,2]
[380213504,1755612657940,-68.21753448,0.0002,2]
[380213505,1755612657953,-411.78246552,0.0002,2]
[380213506,1755612657963,-187.56753448,0.0002,2]
[380213507,1755612657986,-292.43246552,0.0002,2]
[380213508,1755612657995,-420.0,0.0002,2]
[380213509,1755612658004,-702.29,0.0002,2]
[380213510,1755612658014,-586.76,0.0002,2]
[380213511,1755612658024,-948.85,0.0002,2]
[380213512,1755612658033,-480.0,0.0002,2]
[380213513,1755612658043,-812.04,0.0002,2]
[380213514,1755612658053,-480.0,0.0002,2]
[380213515,1755612658062,-480.0,0.0002,2]
[380213516,1755612658071,-904.03,0.0002,2]
[380213517,1755612658081,-3024.3591903,0.0002,2]
[380213518,1755612658092,-715.6763441,0.0002,2]
[380213519,1755612658168,-5895.0444656,0.0002,2]
[380213520,1755612658178,-463.1809597,0.0002,2]
[380213521,1755612658187,-442.25842071,0.0002,2]
[380213522,1755612658196,-2062.67,0.0002,2]
[380213523,1755612658206,-3655.21,0.0002,2]
[380213524,1755612658216,-480.0,0.0002,2]
[380213525,1755612658225,-480.0,0.0002,2]
[380213526,1755612658235,-160.0,0.0002,2]
[380213527,1755612658244,-851.83,0.0002,2]
[380213528,1755612658253,-978.76,0.0002,2]
[380213529,1755612658262,-480.0,0.0002,2]
[380213530,1755612658271,-480.0,0.0002,2]
[380213531,1755612658281,-480.0,0.0002,2]
[380213532,1755612658290,-984.65,0.0002,2]
[380213533,1755612658299,-480.0,0.0002,2]
[380213534,1755612658307,-480.0,0.0002,2]
[380213535,1755612658315,-480.0,0.0002,2]
[380213536,1755612658323,-480.0,0.0002,2]
[380213537,1755612658331,-1000.0,0.00020021,2]
[380213538,1755612658340,-1000.0,0.00020021,2]
[380213539,1755612658349,-602.93108077,0.00020021,2]
[380213540,1755612658364,-397.06891923,0.00020021,2]
[380213541,1755612658373,-1000.0,0.00020021,2]
[380213542,1755612658381,-1658.02319931,0.00020126,2]
[380213543,1755612658789,-480.0,0.00019178,2]
[380213544,1755612658798,-654.70122693,0.00019178,2]
[380213545,1755612658810,-325.24589229,0.00019178,2]
[380213546,1755612658821,-10931.07321561,0.00019178,2]
[380213547,1755612658832,-645.40039298,0.00019178,2]
[380213548,1755612659159,-480.0,0.00019178,2]
[380213549,1755612659168,-5575.52556024,0.00019178,2]
[380213550,1755612659177,-480.0,0.00019452,2]
[380213551,1755612659187,-480.0,0.00019452,2]
[380213552,1755612659196,-480.0,0.00019726,2]
[380213553,1755612659205,-480.0,0.00019726,2]
[380213554,1755612659215,-480.0,0.0002,2]
[380213555,1755612659224,-480.0,0.0002,2]
[380213556,1755612659234,-117.70824205,0.00020126,2]
[380213557,1755612659243,-651.8940498,0.00020173,2]
[380213558,1755612659253,-460.535969,0.00020187,2]
[380213559,1755612659262,-591.58889954,0.00020196,2]
[380213560,1755612659271,-1500.0,0.00020268,2]
[380213561,1755612659280,-480.0,0.00020273,2]
[380213562,1755612659290,-480.0,0.00020273,2]
[380213563,1755612659299,-480.0,0.00020273,2]
[380213564,1755612659308,-480.0,0.00020273,2]
[380213565,1755612659318,-480.0,0.00020273,2]
[380213566,1755612659328,-480.0,0.00020273,2]
[380213567,1755612659337,-480.0,0.00020273,2]
[380213568,1755612659347,-700.48,0.00020273,2]
[380213569,1755612659356,-480.0,0.00020273,2]
[380213570,1755612659365,-480.0,0.00020273,2]
[380213571,1755612659373,-480.0,0.00020273,2]
[380213572,1755612659383,-480.0,0.00020273,2]
[380213573,1755612659392,-480.0,0.00020273,2]
[380213574,1755612659401,-480.0,0.00020273,2]
[380213575,1755612659411,-480.0,0.00020273,2]
[380213576,1755612659421,-9591.59,0.00020273,2]
[380213577,1755612659429,-480.0,0.00020273,2]
[380213578,1755612659438,-325.72079697,0.00020273,2]
[380213579,1755612659447,-480.0,0.00020273,2]
[380213580,1755612659457,-585.01,0.00020273,2]
[380213581,1755612659467,-480.0,0.00020273,2]
[380213582,1755612659476,-480.0,0.00020273,2]
[380213583,1755612659486,-480.0,0.00020273,2]
[380213584,1755612659495,-480.0,0.00020273,2]
[380213585,1755612659505,-480.0,0.00020273,2]
[380213586,1755612659514,-378.62460846,0.00020273,2]
[380213587,1755612659523,-480.0,0.00020273,2]
[380213588,1755612659531,-490.0033101,0.00020273,2]
[380213589,1755612659540,-480.0,0.00020273,2]
[380213590,1755612659549,-480.0,0.00020273,2]